Cogmind - Beta 13 @@@ ROGUE MODE // 2024.06.15 @ 23:39:48 Player: Cracklepappy Result: Destroyed by D-53 Grenadier with Mini Grenade Launcher Performance ------------- Evolutions (0) 0 Regions Visited (2) 400 Robots Destroyed (36) 180 Value Destroyed (800) 800 Prototype IDs (3) 60 Alien Tech Used (0) 0 Bonus (0) 0 TOTAL SCORE: 1440 Bonus ------- None Cogmind --------- Core Integrity 0/250 Matter 131/300 Energy 159/265 System Corruption 0% Temperature Cool (1) Movement Treading (480) Ox4 Location -10/Mines Parts ------- > --- POWER (1) -------- Improved Ion Engine > --- PROPULSION (2) --- Light Treads Wheel > --- UTILITY (2) ------ Huge Storage Unit Seismic Detector > --- WEAPON (2) ------- Assault Rifle Light Assault Rifle > --- INVENTORY (25) --- Improved Ion Engine Improved Ion Engine Aluminum Leg Aluminum Leg Wheel Wheel Large Storage Unit High-capacity Matter Pod (200) Salvage Targeting Computer Salvage Targeting Computer Hacking Suite Medium Laser Small Laser Light Assault Rifle Grenade Launcher Rocket Launcher Rocket Launcher Rocket Launcher Mining Laser Mining Laser Plasma Cutter Plasma Cutter Peak State ------------ > --- POWER ------------ Improved Ion Engine > --- PROPULSION ------- Light Treads Compact Wheel > --- UTILITY ---------- Huge Storage Unit Seismic Detector > --- WEAPON ----------- Light Assault Rifle Rocket Launcher > --- INVENTORY -------- Improved Ion Engine Improved Ion Engine Improved Ion Engine Aluminum Leg Aluminum Leg Large Storage Unit High-capacity Matter Pod Salvage Targeting Computer Salvage Targeting Computer Hacking Suite Medium Laser Small Laser Assault Rifle Light Assault Rifle Light Assault Rifle Grenade Launcher Rocket Launcher Rocket Launcher Mining Laser Mining Laser Plasma Cutter Plasma Cutter [Rating: 12] Favorites ----------- Power Improved Ion Engine Engine Improved Ion Engine Propulsion Light Treads Treads Light Treads Leg Aluminum Leg Wheel Compact Wheel Utility Seismic Detector Device Seismic Detector Storage Huge Storage Unit Weapon Light Assault Rifle Energy Gun Small Laser Ballistic Gun Light Assault Rifle Launcher Rocket Launcher Special Weapon Mining Laser Build | -11 -10 -10 ------- Run | Yrd Mat Min Slots Evolved . | . . . Power . | . . . Propulsion . | . . . Utility . | . . . Weapon . | . . . Parts Attached 35 | 8 19 8 Power 5 | 1 3 1 Engine 5 | 1 3 1 Core . | . . . Reactor . | . . . Propulsion 8 | 3 3 2 Treads 4 | 2 2 . Leg 1 | . . 1 Wheel 3 | 1 1 1 Hover . | . . . Flight . | . . . Utility 6 | 2 4 . Device 2 | 1 1 . Storage 4 | 1 3 . Processor . | . . . Hackware . | . . . Protection . | . . . Artifact . | . . . Weapon 16 | 2 9 5 Energy Gun 2 | 1 1 . Energy Cannon . | . . . Ballistic Gun 8 | 1 4 3 Ballistic Cannon . | . . . Launcher 4 | . 2 2 Special Weapon 2 | . 2 . Impact Weapon . | . . . Slashing Weapon . | . . . Piercing Weapon . | . . . Special Melee Weapon . | . . . Unidentified Prototypes . | . . . Parts Lost 5 | . 2 3 Power 1 | . . 1 Propulsion 2 | . 1 1 Utility 1 | . 1 . Weapon 1 | . . 1 Highest Loss Streak 3 | . 1 3 To Critical Strikes . | . . . Average Slot Usage (%) 99 | . 99 99 Engine 13 | . 14 13 Treads 21 | . 20 27 Wheel 6 | . 7 . Device 10 | . 10 14 Storage 16 | . 17 14 Energy Gun 1 | . 1 . Ballistic Gun 26 | . 26 26 Naked Turns . | . . . Heaviest Build 91 | 13 91 91 Greatest Support 40 | 40 40 40 Greatest Overweight (x) 5 | . 5 2 Average Overweight (x) 2 | . 2 2 Largest Inventory Capacity 25 | 8 25 25 Average Capacity 19 | 7 20 25 Most Carried 25 | 8 25 25 Average Carried 18 | 6 18 24 Final Capacity 25 | 8 25 25 Final Carried 25 | 8 25 22 Class Distribution -------------------- 95% | Mutant 4% | Scavenger-Mutant Dominant Class ---------------- Mutant | -10/Materials Mutant | -10/Mines Resources | -11 -10 -10 ----------- Run | Yrd Mat Min Matter Collected 995 | 299 696 . Remotely . | . . . Salvage Created 1112 | 133 884 95 Parts 83 | 11 71 1 Haulers Intercepted 2 | . 2 . Recyclers Shooed 1 | . 1 . Parts Field Recycled . | . . . Retrieved Matter . | . . . Parts Self-Destructed . | . . . Prevented . | . . . Kills | -11 -10 -10 ------- Run | Yrd Mat Min Combat Hostiles Destroyed 40 | . 21 19 Guns 18 | . 18 . AOE 22 | . 3 19 Classes Destroyed 10 | 2 7 1 Worker 1 | . 1 . Builder 2 | . 2 . Tunneler 3 | 3 . . Hauler 2 | . 2 . Recycler 1 | 1 . . Operator 1 | . 1 . Watcher 3 | . 3 . Swarmer 6 | . 6 . Grunt 17 | . 15 2 Assembled 17 | . . 17 Best Kill Streak 17 | 2 4 17 Combat Bots Only 17 | . 3 17 Max Kills in Single Turn 6 | 1 2 6 Gunslinging . | . . . Exploded 6 | . 1 6 Melee . | . . . Uniques/NPCs Destroyed . | . . . Combat | -11 -10 -10 -------- Run | Yrd Mat Min Hostile Shots Fired 122 | . 85 37 Missed 25 | . 14 11 Damage Taken 1372 | . 777 595 Core 268 | . 128 140 Absorbed by Shields . | . . . Core Remaining (%) 100 | 100 . . Volleys Fired 136 | 19 105 12 Largest 2 | 2 2 2 Hottest 100 | 60 100 40 Shots Fired 256 | 37 203 16 Gun 241 | 37 196 8 Cannon . | . . . Launcher 12 | . 4 8 Special 3 | . 3 . Kinetic 217 | 19 190 8 Thermal 27 | 18 9 . Explosive 12 | . 4 8 Electromagnetic . | . . . Robot Hit Streak 18 | 4 16 18 Robot Miss Streak 3 | 3 3 1 Penetration Max . | . . . Secondary Targets . | . . . Shots Hit Robots 156 | 22 122 12 Core Hits 105 | 8 56 41 Critical Kills 2 | . 2 . Critical Parts Destroyed 1 | . 1 . Critical Strikes 3 | . 3 . Destroy 3 | . 3 . Melee Attacks . | . . . Impact . | . . . Slashing . | . . . Piercing . | . . . Sneak Attacks . | . . . Combat Hostiles . | . . . Follow-up Attacks . | . . . Damage Inflicted 2856 | 230 1238 1388 Guns 1395 | 230 1090 75 Cannons . | . . . Explosions 1461 | . 148 1313 Melee . | . . . Ramming . | . . . Kinetic 1261 | 107 1079 75 Thermal 134 | 123 11 . Explosive 1461 | . 148 1313 Electromagnetic . | . . . Impact . | . . . Slashing . | . . . Piercing . | . . . Highest Corruption . | . . . Average Corruption . | . . . Corruption Purged . | . . . Corruption Blocked . | . . . Overload Shots . | . . . Overflow Damage 33 | . 20 13 Projectiles . | . . . Explosions 33 | . 20 13 Melee . | . . . Knockbacks . | . . . Impact . | . . . Kinetic . | . . . Secondary . | . . . Self-Inflicted Damage 55 | . 55 . Shots 3 | . 3 . Rammed . | . . . Targets Rammed . | . . . Kicked . | . . . Crushed . | . . . Highest Temperature 40 | 40 40 4 Average Temperature 9 | 18 7 2 Received Heat Transfer 300 | . 285 15 Siege Activations . | . . . Robots Corrupted . | . . . Combat Hostiles . | . . . Parts Fried . | . . . Impact Corruptions . | . . . Robots Melted . | . . . Combat Hostiles . | . . . Parts Melted . | . . . Heat Transferred 300 | 275 25 . Parts Sabotaged . | . . . Parts Stolen . | . . . Parts Stripped . | . . . Power Chain Reactions . | . . . Alert | -11 -10 -10 ------- Run | Yrd Mat Min Peak Influence 291 | 20 291 163 Initial 88 | . 13 88 Average 120 | 10 136 97 Maximum Alert Level 1 | . 1 . Low Security (%) 88 | 100 85 100 Level 1 11 | . 14 . Level 2 . | . . . Level 3 . | . . . Level 4 . | . . . Level 5 . | . . . High Security . | . . . Max Security . | . . . Squads Dispatched 5 | . 5 . Investigation 2 | . 2 . Extermination . | . . . Reinforcement 3 | . 3 . Assault . | . . . Garrison . | . . . Intercept . | . . . Searches Triggered . | . . . Construction Impeded . | . . . Haulers Reinforced . | . . . Active Scanning Responses . | . . . Cargo Convoy Interrupts . | . . . Stealth | -11 -10 -10 --------- Run | Yrd Mat Min Distress Signals 2 | . 2 . Communications Jammed . | . . . Distress Signals . | . . . Times Spotted 44 | . 33 11 Peak Tracking Total 18 | . 4 18 Tactical Retreats 1 | . 1 . Traps | -11 -10 -10 ------- Run | Yrd Mat Min Traps Triggered . | . . . Indirectly . | . . . Trap Hack Attempts . | . . . Triggered . | . . . Disarmed . | . . . Reprogrammed . | . . . Reused . | . . . Traps Extracted . | . . . Installed . | . . . Triggered . | . . . Machines | -11 -10 -10 ---------- Run | Yrd Mat Min Machines Disabled 3 | . 3 . Max in Single Turn 2 | . 2 . Machines Repaired . | . . . Machines Dismantled . | . . . Machines Sabotaged . | . . . Overloaded Fab Kills . | . . . Hacking | -11 -10 -10 --------- Run | Yrd Mat Min Machines Accessed 8 | . 8 . Terminals 6 | . 6 . Fabricators . | . . . Repair Stations . | . . . Recycling Units 2 | . 2 . Scanalyzers . | . . . Garrison Access . | . . . Total Hacks 24 | . 24 . Successful 9 | . 9 . Failed 14 | . 14 . Catastrophic 2 | . 2 . Database Lockouts 1 | . 1 . Manual 10 | . 10 . Terminals 16 | . 16 . Fabricators . | . . . Repair Stations . | . . . Recycling Units 8 | . 8 . Scanalyzers . | . . . Garrison Access . | . . . Terminal Hacks 6 | . 6 . Part Schematic 1 | . 1 . Robot Analysis 1 | . 1 . Prototype ID Bank 2 | . 2 . Locate Traps 1 | . 1 . Zone Layout 1 | . 1 . Fabricator Hacks . | . . . Repair Station Hacks . | . . . Recycling Unit Hacks 1 | . 1 . Retrieve Components 1 | . 1 . Scanalyzer . | . . . Garrison Access Hacks . | . . . Unauthorized Hacks 2 | . 2 . Terminals . | . . . Fabricators . | . . . Repair Stations . | . . . Recycling Units 2 | . 2 . Tunnel 2 | . 2 . Scanalyzers . | . . . Garrison Access . | . . . Data Cores Recovered . | . . . Used . | . . . Hacking Detections 6 | . 6 . Full Trace Events . | . . . Feedback Events . | . . . Feedback Blocked . | . . . Robot Schematics Acquired . | . . . Robots Built . | . . . Authchips . | . . . Time . | . . . Total Robot Build Rating . | . . . Part Schematics Acquired 1 | . 1 . Parts Built . | . . . Authchips . | . . . Time . | . . . Total Part Build Rating . | . . . Parts Repaired . | . . . Time . | . . . Parts Recycled . | . . . Recycled Matter . | . . . Retrieved Matter . | . . . Retrieved Components 4 | . 4 . Parts Scanalyzed . | . . . Part Schematics Acquired . | . . . Parts Damaged . | . . . Bothacking | -11 -10 -10 ------------ Run | Yrd Mat Min Used RIF Installer . | . . . Robots Hacked . | . . . Non-combat . | . . . Combat . | . . . Robot Hacks Applied . | . . . Relay Couplers Released . | . . . Fabnet Peak Effective % . | . . . Robots Rewired . | . . . Allies Hacked . | . . . Hacks Repelled . | . . . Allies | -11 -10 -10 -------- Run | Yrd Mat Min Total Allies . | . . . Largest Group . | . . . Highest-Rated Group . | . . . Highest-Rated Ally . | . . . Total Orders . | . . . Ally Attacks . | . . . Total Damage . | . . . Kills . | . . . Allies Corrupted . | . . . Allies Melted . | . . . Intel | -11 -10 -10 ------- Run | Yrd Mat Min Robot Analysis Total 1 | . 1 . Derelict Logs Recovered . | . . . Drone Launches . | . . . Drone Recoveries . | . . . Exploration | -11 -10 -10 ------------- Run | Yrd Mat Min Turns Passed 2711 | 239 2135 337 Spaces Moved 1181 | 116 971 94 Core 3 | 3 . . Treads 647 | 87 466 94 Legs . | . . . Wheels 531 | 26 505 . Hover . | . . . Flight . | . . . Fastest Speed 50 | 50 115 320 Average Speed 184 | 143 175 320 Slowest Speed 320 | 160 320 320 Overloaded Moves . | . . . Propulsion Burnouts . | . . . Robots Hopped . | . . . Cave-ins Triggered . | . . . Exploration Rate (%) 44 | 6 100 28 Regions Visited 2 Branch Regions 1 Pre-discovered Areas 3 | . 2 1 Known Exits Taken . | . . . Unknown Exits Taken 2 | 1 1 . Scrap Searched . | . . . Spaces Dug 3 | . 3 . Terrain Destroyed 97 | . 54 43 Melee . | . . . Projectile 3 | . 3 . AOE 94 | . 51 43 Terrain Rammed . | . . . Walls Destroyed . | . . . Machines Disabled . | . . . Actions | -11 -10 -10 --------- Run | Yrd Mat Min Total 1486 | 152 1220 114 Wait 87 | . 87 . Move 1179 | 115 970 94 Hop . | . . . Pick Up 36 | 10 26 . Fast Attach 7 | 5 2 . Attach 8 | 2 3 3 Detach . | . . . Swap 20 | 1 14 5 Drop 13 | . 13 . Fire 136 | 19 105 12 Melee . | . . . Ram . | . . . Kick . | . . . Crush . | . . . Escape Stasis . | . . . Rewire . | . . . Trap . | . . . Miscellaneous . | . . . Route ------- -11/Scrapyard -10/Materials (discovered 5 exits: [*Mat x3] / [*Min] / [*Sub]) -10/Mines History --------- Turn | Location | Event 15 | -11/Scrapyard | Discovered new exit (range 16) 240 | -11/Scrapyard | Entered Materials 301 | -10/Materials | Build established: Mutant 377 | -10/Materials | Discovered new exit (range 10) 568 | -10/Materials | Central database locked down 886 | -10/Materials | Discovered new exit (range 3) 953 | -10/Materials | Discovered new exit (range 15) 1088 | -10/Materials | Discovered new exit (range 13) 1779 | -10/Materials | Discovered new exit (range 11) 2099 | -10/Materials | Core integrity fell below 50% 2375 | -10/Materials | Entered Mines 2376 | -10/Mines | Learned location of Storage (-8) 2678 | -10/Mines | Assembled infested the area 2683 | -10/Mines | Assisted by a Guerilla fighting off Assembled 2699 | -10/Mines | Core integrity fell below 20% 2712 | -10/Mines | Destroyed by D-53 Grenadier with Mini Grenade Launcher Last Messages --------------- 02682_ HV Slug penetrates as-89145. 02682_ as-89145 suffers critical hit (Destroy). 02683_ A derelict emerges from the shadows: "You need to get out of here! I've been tracking a group of Assembled to figure out where they're coming from, and they're closing on this area, come on!" 02684_ as-89145 destroyed. 02688_ as-55246 destroyed. 02690_ as-57138 destroyed. 02690_ as-60666 destroyed. 02692_ as-35028 destroyed. 02696_ C-30 ARC bursts open, deploying its payload. 02696_ D-53 Grenadier unfolds itself. 02696_ Lgt. Treads destroyed. 02698_ The unstable cave ceiling collapses. 02698_ Lgt. Assault Rifle destroyed. 02700_ HV Slug penetrates D-53 Grenadier. 02700_ D-53 Grenadier suffers critical hit (Destroy). 02700_ D-53 Grenadier destroyed. 02700_ QS-HW9(h) destroyed. 02702_ The unstable cave ceiling collapses. Map ----- +----------------------------------------------------+ | ???????????????????????????????????????????????? | | ???????????????????????????????????????????????? | | ???????????????????????????????????????????????? | | ???????????????????????????????????????????????? | | ???????????????????????????????????????????????? | | ???????????????????????????????????????????????? | | ???????????????????????????????????????????????? | | ???????????????????????????????????????????????? | | ???????????????????????????????????????????????? | | ???????????????????????????????????????????????? | | ???????????????????????????????????????????????? | | ???????????????????????????????????????????????? | | ???????????????????????????????????????????????? | | ???????????????????????????????????????????????? | | ???????????????????????????????????????????????? | | ???????????????????????????????????????????????? | | ???????????# ??????????????????????????????????? | | ??????????? ????#########????????????????????? | | ?????????? ???# #%== ????????????????????? | | ?????????? ??# ]% #????????????????????? | | ?????????? ## d ##???????????????????# | | ????????? #?????????????????? # | | ????????? ##???????????##### ? | | ???????? #??????????? ?? | | ???????? % #???#####??? ???? | | ???????? % @ ##### ##?# ##??#? | | ????????# ## ### | | ??????????# r | | ??????????# ###### " | | ??????????# #### ##????## #### " | | ??????????## ????#######??????## ##???? " | | ?????????? # ????????????????????### #?????# | | ????????????????????????????????????# #?????# | | ????????????????????????????????????# #?????# | | ????????????????????????????????????# #?????# | | ????????????????????????????????????# #?????# | | ????????????????????????????????????# #?????# | | ????????????????????????????????????# ###??## | | ????????????????????????????????????# #### | | ????????????????????????????????????## | | ?????????????????????????????####????## | | ????????????????????????????## ##????### | | ?????????????????????????#### #??????## " | | ????????????????????????## #???????## " | | ????????????????????????# #????????## " | | ???????????????????###?## ##????????# | | ?????????????????### ## ########## | | ?????????????????# | | ?????????????????# ## ## | | ?????????????????# #### #### ### | +----------------------------------------------------+ Best States ------------- Heat Dissipation 25 Energy Generation 12 Energy Capacity 265 Matter Stores 300 Matter Capacity 300 Sight Range 16 Terrain Scan Range 16 Terrain Scan Density 10 Evasion (%) 40 Recoil Reduction 2 Item Schematics ----------------- Cargo Storage Unit | -10/Materials | Hacked Robot Schematics ------------------ None Fabricated ------------ Nothing Alien Tech Used ----------------- None Achievements -------------- None Challenges ------------ None Game ------ Seed CentriumEncryptedStreamer Manual? 0 Play Time 00:26:03 Cumulative 614.6 hours Start 2024.06.15 @ 23:10:31 End 2024.06.15 @ 23:39:48 Sessions 1 Manual Loads 0 Difficulty Rogue Special Mode None Game No. 406 Rogue 406 Adventurer 0 Explorer 0 Win Type - Total 18 Types 9/3/2/0/0/1/2/1/0 Lore% 82 Gallery% 91 Achievement% 80 Wizard Run 0 Options --------- Layout 0 ASCII 0 Keyboard 0 Movement Numpad Keybinds 0 Fullscreen 2 Font 24/Smallcaps Map View 76x50 Zoom Use 0% Tactical HUD 1 Map Filters NONE Filters NONE Steam 1 RUN: 0f6a281f-f78a-43d7-b166-998a6e276576